[Event "Titled Tuesday Blitz November 15 Early 2022"]
[White "Tan, Jun Ying"]
[Black "Jumabayev, Rinat"]
[WhiteFideId "5710413"]
[BlackFideId "13702661"]
[WhiteElo "2089"]
[BlackElo "2561"]
[Result "0-1"]
[Round "04"]
[TimeControl "180+1"]
[Date "2022.11.16"]
[WhiteClock "0:00:27"]
[BlackClock "0:00:06"]

1. d4 {[%clk 0:03:00]}  Nf6 {[%clk 0:02:53]} 2. c4 {[%clk 0:03:00]}  e6 {[%clk 0:02:53]} 3. Nc3 {[%clk 0:03:00]}  Bb4 {[%clk 0:02:53]} 4. e3 {[%clk 0:03:01]}  O-O {[%clk 0:02:53]} 5. Ne2 {[%clk 0:03:01]}  Re8 {[%clk 0:02:52]} 6. a3 {[%clk 0:03:01]}  Bf8 {[%clk 0:02:53]} 7. Ng3 {[%clk 0:03:02]}  d5 {[%clk 0:02:51]} 8. Be2 {[%clk 0:03:02]}  a5 {[%clk 0:02:49]} 9. O-O {[%clk 0:02:59]}  c6 {[%clk 0:02:45]} 10. cxd5 {[%clk 0:02:44]}  exd5 {[%clk 0:02:45]} 11. Qc2 {[%clk 0:02:42]}  Na6 {[%clk 0:02:41]} 12. Bf3 {[%clk 0:02:37]}  Nc7 {[%clk 0:02:31]} 13. Rd1 {[%clk 0:02:35]}  g6 {[%clk 0:02:30]} 14. e4 {[%clk 0:02:30]}  dxe4 {[%clk 0:02:29]} 15. Ncxe4 {[%clk 0:02:30]}  Nxe4 {[%clk 0:02:27]} 16. Nxe4 {[%clk 0:02:29]}  Bf5 {[%clk 0:02:27]} 17. g4 {[%clk 0:02:13]}  Bxe4 {[%clk 0:02:14]} 18. Bxe4 {[%clk 0:02:13]}  Qh4 {[%clk 0:02:15]} 19. f3 {[%clk 0:02:06]}  Rad8 {[%clk 0:01:53]} 20. Bf4 {[%clk 0:02:03]}  Bd6 {[%clk 0:01:50]} 21. Bxd6 {[%clk 0:01:58]}  Rxd6 {[%clk 0:01:51]} 22. Qc5 {[%clk 0:01:50]}  Rf6 {[%clk 0:01:45]} 23. Rd2 {[%clk 0:01:37]}  Nd5 {[%clk 0:01:14]} 24. Qc2 {[%clk 0:01:06]}  Nf4 {[%clk 0:01:00]} 25. Rf1 {[%clk 0:01:03]}  Rd6 {[%clk 0:00:57]} 26. Qd1 {[%clk 0:00:56]}  Kh8 {[%clk 0:00:52]} 27. Kh1 {[%clk 0:00:46]}  h5 {[%clk 0:00:46]} 28. gxh5 {[%clk 0:00:44]}  Nxh5 {[%clk 0:00:45]} 29. Rg2 {[%clk 0:00:42]}  Qf6 {[%clk 0:00:44]} 30. Qd2 {[%clk 0:00:33]}  Rxe4 {[%clk 0:00:14]} 31. Qh6+ {[%clk 0:00:32]}  Kg8 {[%clk 0:00:14]} 32. Qxh5 {[%clk 0:00:33]}  Rexd4 {[%clk 0:00:13]} 33. Re1 {[%clk 0:00:30]}  Kg7 {[%clk 0:00:07]} 34. Qxa5 {[%clk 0:00:27]}  Qxf3 {[%clk 0:00:05]} 35. Qe5+ {[%clk 0:00:28]}  Qf6 {[%clk 0:00:06]} 36. Qxf6+ {[%clk 0:00:26]}  Rxf6 {[%clk 0:00:06]} 37. Rf2 {[%clk 0:00:27]}  Rxf2 {[%clk 0:00:06]} 0-1


[Site "https://www.chess.com"]

[Event "Titled Tuesday Blitz November 15 Early 2022"]
[White "Tarigan, Gilbert Elroy"]
[Black "Garv Gaur"]
[WhiteFideId "7108133"]
[BlackFideId "45030839"]
[WhiteElo "2284"]
[BlackElo "1960"]
[Result "1-0"]
[Round "04"]
[TimeControl "180+1"]
[Date "2022.11.16"]
[WhiteClock "0:00:05"]
[BlackClock "0:00:06"]

1. d4 {[%clk 0:02:50]}  Nf6 {[%clk 0:02:58]} 2. Nf3 {[%clk 0:02:50]}  d5 {[%clk 0:02:57]} 3. Bf4 {[%clk 0:02:46]}  c5 {[%clk 0:02:57]} 4. e3 {[%clk 0:02:46]}  Nc6 {[%clk 0:02:54]} 5. c3 {[%clk 0:02:45]}  Qb6 {[%clk 0:02:53]} 6. Qb3 {[%clk 0:02:38]}  c4 {[%clk 0:02:53]} 7. Qc2 {[%clk 0:02:38]}  Bf5 {[%clk 0:02:52]} 8. Qc1 {[%clk 0:02:39]}  Nh5 {[%clk 0:02:49]} 9. Bg3 {[%clk 0:02:34]}  e6 {[%clk 0:02:46]} 10. Be2 {[%clk 0:02:34]}  h6 {[%clk 0:02:41]} 11. Nbd2 {[%clk 0:02:29]}  Nxg3 {[%clk 0:02:38]} 12. hxg3 {[%clk 0:02:28]}  Bd6 {[%clk 0:02:37]} 13. Bd1 {[%clk 0:02:24]}  Qc7 {[%clk 0:02:34]} 14. Bc2 {[%clk 0:02:24]}  b5 {[%clk 0:02:22]} 15. Bxf5 {[%clk 0:02:19]}  exf5 {[%clk 0:02:23]} 16. Qc2 {[%clk 0:01:56]}  g6 {[%clk 0:02:22]} 17. b3 {[%clk 0:01:45]}  Kf8 {[%clk 0:02:20]} 18. a4 {[%clk 0:01:42]}  cxb3 {[%clk 0:02:10]} 19. Qxb3 {[%clk 0:01:40]}  bxa4 {[%clk 0:02:06]} 20. Rxa4 {[%clk 0:01:38]}  Kg7 {[%clk 0:02:06]} 21. Qxd5 {[%clk 0:01:34]}  Rhd8 {[%clk 0:01:40]} 22. Qc4 {[%clk 0:01:30]}  Rac8 {[%clk 0:01:33]} 23. O-O {[%clk 0:01:28]}  Qd7 {[%clk 0:01:33]} 24. Qa2 {[%clk 0:01:25]}  a5 {[%clk 0:01:32]} 25. Rb1 {[%clk 0:01:01]}  Rb8 {[%clk 0:01:31]} 26. Rxb8 {[%clk 0:00:56]}  Rxb8 {[%clk 0:01:32]} 27. d5 {[%clk 0:00:35]}  Ne5 {[%clk 0:01:07]} 28. Rxa5 {[%clk 0:00:35]}  Qc7 {[%clk 0:00:59]} 29. c4 {[%clk 0:00:16]}  Nd3 {[%clk 0:00:49]} 30. Rb5 {[%clk 0:00:14]}  Rxb5 {[%clk 0:00:45]} 31. cxb5 {[%clk 0:00:15]}  Qc1+ {[%clk 0:00:46]} 32. Nf1 {[%clk 0:00:16]}  Bc5 {[%clk 0:00:38]} 33. Qd2 {[%clk 0:00:12]}  Qb1 {[%clk 0:00:38]} 34. Qc3+ {[%clk 0:00:08]}  Kg8 {[%clk 0:00:37]} 35. Ne5 {[%clk 0:00:04]}  Nxe5 {[%clk 0:00:23]} 36. Qxe5 {[%clk 0:00:05]}  Qxb5 {[%clk 0:00:22]} 37. Nd2 {[%clk 0:00:04]}  Qd7 {[%clk 0:00:20]} 38. Nf3 {[%clk 0:00:04]}  Bd6 {[%clk 0:00:20]} 39. Qc3 {[%clk 0:00:04]}  Qa7 {[%clk 0:00:20]} 40. Qc1 {[%clk 0:00:03]}  Qa2 {[%clk 0:00:20]} 41. Qd1 {[%clk 0:00:03]}  g5 {[%clk 0:00:17]} 42. Qd3 {[%clk 0:00:03]}  Qa1+ {[%clk 0:00:16]} 43. Kh2 {[%clk 0:00:03]}  Qf6 {[%clk 0:00:16]} 44. Nd4 {[%clk 0:00:03]}  f4 {[%clk 0:00:16]} 45. exf4 {[%clk 0:00:03]}  gxf4 {[%clk 0:00:17]} 46. Ne2 {[%clk 0:00:03]}  fxg3+ {[%clk 0:00:17]} 47. fxg3 {[%clk 0:00:04]}  Qh4+ {[%clk 0:00:16]} 48. Kg1 {[%clk 0:00:04]}  Qf6 {[%clk 0:00:16]} 49. Qf3 {[%clk 0:00:02]}  Qa1+ {[%clk 0:00:16]} 50. Kh2 {[%clk 0:00:03]}  Qe5 {[%clk 0:00:11]} 51. Nf4 {[%clk 0:00:03]}  Qg5 {[%clk 0:00:09]} 52. Kg1 {[%clk 0:00:01]}  Qe5 {[%clk 0:00:09]} 53. Kh2 {[%clk 0:00:02]}  Qg5 {[%clk 0:00:09]} 54. Qf2 {[%clk 0:00:02]}  Qe5 {[%clk 0:00:07]} 55. Kg1 {[%clk 0:00:02]}  Qg5 {[%clk 0:00:07]} 56. Qe3 {[%clk 0:00:03]}  Qf5 {[%clk 0:00:06]} 57. Kh2 {[%clk 0:00:02]}  Qg5 {[%clk 0:00:06]} 58. Qf3 {[%clk 0:00:03]}  Qe5 {[%clk 0:00:06]} 59. Qg4+ {[%clk 0:00:03]}  Kh8 {[%clk 0:00:06]} 60. Qc8+ {[%clk 0:00:03]}  Kh7 {[%clk 0:00:06]} 61. Qg4 {[%clk 0:00:04]}  Kh8 {[%clk 0:00:06]} 62. Kh3 {[%clk 0:00:04]}  Kh7 {[%clk 0:00:06]} 63. Qh5 {[%clk 0:00:05]}  Qe4 {[%clk 0:00:05]} 64. Qxf7+ {[%clk 0:00:05]}  Kh8 {[%clk 0:00:05]} 65. Qf6+ {[%clk 0:00:06]}  Kg8 {[%clk 0:00:05]} 66. Qxd6 {[%clk 0:00:05]}  Qf5+ {[%clk 0:00:05]} 67. Kh2 {[%clk 0:00:05]}  Qg4 {[%clk 0:00:06]} 68. Qe6+ {[%clk 0:00:05]} 1-0


[Site "https://www.chess.com"]

[Event "Titled Tuesday Blitz November 15 Early 2022"]
[White "Terry, Renato"]
[Black "Tanenbaum, Zachary"]
[WhiteFideId "3803457"]
[BlackFideId "2060850"]
[WhiteElo "2577"]
[BlackElo "2175"]
[Result "1/2-1/2"]
[Round "04"]
[TimeControl "180+1"]
[Date "2022.11.15"]
[WhiteClock "0:00:10"]
[BlackClock "0:00:34"]

1. d4 {[%clk 0:02:59]}  d5 {[%clk 0:02:57]} 2. Nf3 {[%clk 0:02:59]}  Nf6 {[%clk 0:02:56]} 3. c4 {[%clk 0:03:00]}  dxc4 {[%clk 0:02:57]} 4. e3 {[%clk 0:03:00]}  a6 {[%clk 0:02:56]} 5. Bxc4 {[%clk 0:03:00]}  e6 {[%clk 0:02:56]} 6. O-O {[%clk 0:02:59]}  c5 {[%clk 0:02:56]} 7. dxc5 {[%clk 0:02:59]}  Bxc5 {[%clk 0:02:57]} 8. Qxd8+ {[%clk 0:02:58]}  Kxd8 {[%clk 0:02:58]} 9. Be2 {[%clk 0:02:42]}  Ke7 {[%clk 0:02:57]} 10. Nbd2 {[%clk 0:02:42]}  Rd8 {[%clk 0:02:56]} 11. Ne5 {[%clk 0:02:42]}  Kf8 {[%clk 0:02:47]} 12. Ndc4 {[%clk 0:02:35]}  Nbd7 {[%clk 0:02:44]} 13. Nd3 {[%clk 0:02:34]}  Be7 {[%clk 0:02:44]} 14. a4 {[%clk 0:02:34]}  b6 {[%clk 0:02:41]} 15. Bf3 {[%clk 0:02:28]}  Rb8 {[%clk 0:02:40]} 16. b3 {[%clk 0:02:13]}  Bb7 {[%clk 0:02:38]} 17. Bxb7 {[%clk 0:02:12]}  Rxb7 {[%clk 0:02:39]} 18. Bb2 {[%clk 0:02:11]}  Nc5 {[%clk 0:02:37]} 19. Nxc5 {[%clk 0:02:10]}  Bxc5 {[%clk 0:02:38]} 20. Rfd1 {[%clk 0:02:05]}  Rbd7 {[%clk 0:02:38]} 21. Rxd7 {[%clk 0:02:04]}  Rxd7 {[%clk 0:02:38]} 22. Rb1 {[%clk 0:01:26]}  Rd3 {[%clk 0:01:54]} 23. Bxf6 {[%clk 0:00:54]}  gxf6 {[%clk 0:01:54]} 24. Kf1 {[%clk 0:00:54]}  b5 {[%clk 0:01:51]} 25. axb5 {[%clk 0:00:55]}  axb5 {[%clk 0:01:52]} 26. Na5 {[%clk 0:00:55]}  Rd2 {[%clk 0:01:45]} 27. b4 {[%clk 0:00:54]}  Bb6 {[%clk 0:01:41]} 28. Nb3 {[%clk 0:00:53]}  Rc2 {[%clk 0:01:37]} 29. Ke1 {[%clk 0:00:53]}  Ke7 {[%clk 0:01:32]} 30. Nd2 {[%clk 0:00:51]}  f5 {[%clk 0:01:26]} 31. g3 {[%clk 0:00:50]}  Bc7 {[%clk 0:01:23]} 32. Kd1 {[%clk 0:00:50]}  Ra2 {[%clk 0:01:22]} 33. Ke1 {[%clk 0:00:37]}  Bd6 {[%clk 0:01:21]} 34. Nf3 {[%clk 0:00:38]}  Ra4 {[%clk 0:01:20]} 35. Nd4 {[%clk 0:00:38]}  Kf6 {[%clk 0:01:09]} 36. Nxb5 {[%clk 0:00:38]}  Rxb4 {[%clk 0:01:07]} 37. Rxb4 {[%clk 0:00:38]}  Bxb4+ {[%clk 0:01:08]} 38. Ke2 {[%clk 0:00:39]}  Kg6 {[%clk 0:01:06]} 39. Nd4 {[%clk 0:00:38]}  Bc5 {[%clk 0:01:06]} 40. Nc6 {[%clk 0:00:38]}  Kf6 {[%clk 0:01:05]} 41. Na5 {[%clk 0:00:38]}  Bd6 {[%clk 0:01:05]} 42. Nc4 {[%clk 0:00:39]}  Bc7 {[%clk 0:01:05]} 43. Kf3 {[%clk 0:00:40]}  Kg6 {[%clk 0:01:04]} 44. Na3 {[%clk 0:00:40]}  Kf6 {[%clk 0:01:04]} 45. Nb5 {[%clk 0:00:41]}  Bb8 {[%clk 0:01:02]} 46. Nd4 {[%clk 0:00:40]}  Be5 {[%clk 0:01:02]} 47. Nc6 {[%clk 0:00:41]}  Bc3 {[%clk 0:01:01]} 48. h3 {[%clk 0:00:41]}  Kg6 {[%clk 0:00:59]} 49. Na7 {[%clk 0:00:38]}  Kf6 {[%clk 0:00:59]} 50. Nb5 {[%clk 0:00:39]}  Be5 {[%clk 0:00:58]} 51. Na3 {[%clk 0:00:39]}  Bd6 {[%clk 0:00:58]} 52. Nc4 {[%clk 0:00:40]}  Bc7 {[%clk 0:00:58]} 53. Ke2 {[%clk 0:00:38]}  Kg6 {[%clk 0:00:58]} 54. Kd3 {[%clk 0:00:38]}  Kf6 {[%clk 0:00:58]} 55. Kd4 {[%clk 0:00:38]}  Bb8 {[%clk 0:00:57]} 56. Kc5 {[%clk 0:00:37]}  Bc7 {[%clk 0:00:49]} 57. Kc6 {[%clk 0:00:37]}  Bd8 {[%clk 0:00:49]} 58. Kd7 {[%clk 0:00:37]}  Be7 {[%clk 0:00:49]} 59. Ke8 {[%clk 0:00:38]}  Bb4 {[%clk 0:00:48]} 60. Nb2 {[%clk 0:00:31]}  e5 {[%clk 0:00:45]} 61. Kd7 {[%clk 0:00:17]}  e4 {[%clk 0:00:43]} 62. Kc6 {[%clk 0:00:16]}  Be1 {[%clk 0:00:43]} 63. Nd1 {[%clk 0:00:16]}  Ke5 {[%clk 0:00:40]} 64. Kd7 {[%clk 0:00:17]}  Kf6 {[%clk 0:00:39]} 65. Kd6 {[%clk 0:00:17]}  Bb4+ {[%clk 0:00:36]} 66. Kd5 {[%clk 0:00:17]}  Be1 {[%clk 0:00:36]} 67. Kd6 {[%clk 0:00:17]}  Bb4+ {[%clk 0:00:36]} 68. Kd5 {[%clk 0:00:17]}  Be1 {[%clk 0:00:36]} 69. Kc4 {[%clk 0:00:10]}  Ke5 {[%clk 0:00:35]} 70. Kc5 {[%clk 0:00:11]}  Kf6 {[%clk 0:00:34]} 71. Kd6 {[%clk 0:00:10]} 1/2-1/2


[Site "https://www.chess.com"]

[Event "Titled Tuesday Blitz November 15 Early 2022"]
[White "Vargas, Mauricio"]
[Black "Jiganchine, Roman"]
[WhiteFideId "4404572"]
[BlackFideId "2603667"]
[WhiteElo "2025"]
[BlackElo "2317"]
[Result "0-1"]
[Round "04"]
[TimeControl "180+1"]
[Date "2022.11.16"]
[WhiteClock "0:00:02"]
[BlackClock "0:00:12"]

1. e4 {[%clk 0:03:00]}  c6 {[%clk 0:02:59]} 2. d4 {[%clk 0:02:59]}  d5 {[%clk 0:02:59]} 3. e5 {[%clk 0:02:59]}  Bf5 {[%clk 0:02:58]} 4. g4 {[%clk 0:03:00]}  Bd7 {[%clk 0:02:58]} 5. f4 {[%clk 0:02:59]}  h5 {[%clk 0:02:54]} 6. g5 {[%clk 0:02:57]}  Bf5 {[%clk 0:02:42]} 7. h4 {[%clk 0:02:47]}  g6 {[%clk 0:02:42]} 8. Ne2 {[%clk 0:02:44]}  e6 {[%clk 0:02:41]} 9. Ng3 {[%clk 0:02:44]}  Ne7 {[%clk 0:02:31]} 10. Nd2 {[%clk 0:02:42]}  Nd7 {[%clk 0:02:29]} 11. Nf3 {[%clk 0:02:30]}  Bg4 {[%clk 0:02:27]} 12. Be2 {[%clk 0:02:27]}  a6 {[%clk 0:02:12]} 13. O-O {[%clk 0:02:27]}  c5 {[%clk 0:02:04]} 14. c3 {[%clk 0:02:26]}  Nc6 {[%clk 0:02:04]} 15. Be3 {[%clk 0:02:24]}  Qb6 {[%clk 0:01:58]} 16. b3 {[%clk 0:02:19]}  Be7 {[%clk 0:01:56]} 17. Qe1 {[%clk 0:02:11]}  Bxf3 {[%clk 0:01:44]} 18. Bxf3 {[%clk 0:02:04]}  cxd4 {[%clk 0:01:44]} 19. cxd4 {[%clk 0:02:03]}  Nxd4 {[%clk 0:01:37]} 20. Qf2 {[%clk 0:02:01]}  Nxf3+ {[%clk 0:01:36]} 21. Qxf3 {[%clk 0:02:02]}  d4 {[%clk 0:01:27]} 22. Bf2 {[%clk 0:01:58]}  Kf8 {[%clk 0:01:24]} 23. Ne4 {[%clk 0:01:56]}  Kg7 {[%clk 0:01:20]} 24. Qd3 {[%clk 0:01:50]}  Rhd8 {[%clk 0:01:02]} 25. Rad1 {[%clk 0:01:46]}  Nc5 {[%clk 0:00:52]} 26. Qf3 {[%clk 0:01:40]}  Nxe4 {[%clk 0:00:46]} 27. Qxe4 {[%clk 0:01:41]}  Qc6 {[%clk 0:00:42]} 28. Qxc6 {[%clk 0:01:36]}  bxc6 {[%clk 0:00:43]} 29. Rxd4 {[%clk 0:01:35]}  Rxd4 {[%clk 0:00:37]} 30. Bxd4 {[%clk 0:01:35]}  Rd8 {[%clk 0:00:38]} 31. Be3 {[%clk 0:01:31]}  Rd3 {[%clk 0:00:35]} 32. Re1 {[%clk 0:01:31]}  Rc3 {[%clk 0:00:28]} 33. Re2 {[%clk 0:01:25]}  Kf8 {[%clk 0:00:22]} 34. Kf2 {[%clk 0:01:23]}  Ke8 {[%clk 0:00:21]} 35. Bd4 {[%clk 0:01:20]}  Rh3 {[%clk 0:00:17]} 36. Kg2 {[%clk 0:01:10]}  Rxh4 {[%clk 0:00:16]} 37. Bf2 {[%clk 0:01:08]}  Rg4+ {[%clk 0:00:15]} 38. Kf3 {[%clk 0:01:07]}  Kd7 {[%clk 0:00:14]} 39. Bb6 {[%clk 0:01:04]}  Rh4 {[%clk 0:00:12]} 40. Rd2+ {[%clk 0:01:03]}  Kc8 {[%clk 0:00:12]} 41. Rc2 {[%clk 0:01:00]}  Kb7 {[%clk 0:00:11]} 42. Bf2 {[%clk 0:00:58]}  Rh3+ {[%clk 0:00:10]} 43. Bg3 {[%clk 0:00:55]}  Rh1 {[%clk 0:00:10]} 44. Rd2 {[%clk 0:00:53]}  Kc8 {[%clk 0:00:09]} 45. Rc2 {[%clk 0:00:48]}  Kc7 {[%clk 0:00:09]} 46. Bf2 {[%clk 0:00:37]}  Rh3+ {[%clk 0:00:09]} 47. Bg3 {[%clk 0:00:36]}  h4 {[%clk 0:00:09]} 48. Kg4 {[%clk 0:00:21]}  Rxg3+ {[%clk 0:00:10]} 49. Kxh4 {[%clk 0:00:21]}  Rd3 {[%clk 0:00:10]} 50. Kg4 {[%clk 0:00:18]}  Rd7 {[%clk 0:00:10]} 51. Kf3 {[%clk 0:00:18]}  c5 {[%clk 0:00:11]} 52. Ke4 {[%clk 0:00:17]}  Kb6 {[%clk 0:00:11]} 53. a3 {[%clk 0:00:14]}  Kb5 {[%clk 0:00:11]} 54. Rc4 {[%clk 0:00:12]}  Bd8 {[%clk 0:00:10]} 55. a4+ {[%clk 0:00:11]}  Kb6 {[%clk 0:00:11]} 56. a5+ {[%clk 0:00:10]}  Kb5 {[%clk 0:00:10]} 57. Ra4 {[%clk 0:00:08]}  Rd4+ {[%clk 0:00:10]} 58. Ke3 {[%clk 0:00:08]}  Rxa4 {[%clk 0:00:10]} 59. bxa4+ {[%clk 0:00:09]}  Kxa4 {[%clk 0:00:10]} 60. Kd3 {[%clk 0:00:09]}  Kb5 {[%clk 0:00:11]} 61. Kc3 {[%clk 0:00:09]}  c4 {[%clk 0:00:11]} 62. Kd4 {[%clk 0:00:09]}  Bxa5 {[%clk 0:00:11]} 63. Ke4 {[%clk 0:00:07]}  Bb6 {[%clk 0:00:12]} 64. Kf3 {[%clk 0:00:05]}  Bd8 {[%clk 0:00:12]} 65. Ke2 {[%clk 0:00:05]}  Kb4 {[%clk 0:00:12]} 66. Kd2 {[%clk 0:00:05]}  Kb3 {[%clk 0:00:13]} 67. Kc1 {[%clk 0:00:06]}  c3 {[%clk 0:00:13]} 68. Kb1 {[%clk 0:00:06]}  Bb6 {[%clk 0:00:14]} 69. Ka1 {[%clk 0:00:04]}  c2 {[%clk 0:00:12]} 70. f5 {[%clk 0:00:02]}  Bd4# {[%clk 0:00:12]} 0-1


[Site "https://www.chess.com"]

[Event "Titled Tuesday Blitz November 15 Early 2022"]
[White "Wagner, Dennis"]
[Black "Pajeken, Jakob Leon"]
[WhiteFideId "24650684"]
[BlackFideId "12942839"]
[WhiteElo "2470"]
[BlackElo "2429"]
[Result "0-1"]
[Round "04"]
[TimeControl "180+1"]
[Date "2022.11.16"]
[WhiteClock "0:00:02"]
[BlackClock "0:00:34"]

1. d4 {[%clk 0:03:00]}  d5 {[%clk 0:03:00]} 2. c4 {[%clk 0:03:00]}  dxc4 {[%clk 0:03:01]} 3. Nf3 {[%clk 0:03:00]}  Nf6 {[%clk 0:02:59]} 4. Qa4+ {[%clk 0:02:56]}  Nc6 {[%clk 0:03:00]} 5. Nc3 {[%clk 0:02:53]}  Nd5 {[%clk 0:03:00]} 6. Qxc4 {[%clk 0:02:46]}  Ndb4 {[%clk 0:02:59]} 7. Qb3 {[%clk 0:02:33]}  Be6 {[%clk 0:02:58]} 8. Qa4 {[%clk 0:02:13]}  Bd7 {[%clk 0:02:58]} 9. Qd1 {[%clk 0:02:12]}  e5 {[%clk 0:02:51]} 10. dxe5 {[%clk 0:01:34]}  Bg4 {[%clk 0:02:42]} 11. a3 {[%clk 0:01:29]}  Qxd1+ {[%clk 0:02:26]} 12. Kxd1 {[%clk 0:01:30]}  O-O-O+ {[%clk 0:02:26]} 13. Bd2 {[%clk 0:01:30]}  Nd5 {[%clk 0:01:45]} 14. Kc2 {[%clk 0:01:13]}  Bxf3 {[%clk 0:01:24]} 15. gxf3 {[%clk 0:00:53]}  Nd4+ {[%clk 0:01:22]} 16. Kd3 {[%clk 0:00:50]}  Nb3 {[%clk 0:01:08]} 17. Rd1 {[%clk 0:00:35]}  Nb4+ {[%clk 0:01:08]} 18. Kc4 {[%clk 0:00:13]}  Nxd2+ {[%clk 0:00:59]} 19. Rxd2 {[%clk 0:00:13]}  Rxd2 {[%clk 0:01:00]} 20. axb4 {[%clk 0:00:12]}  Rxb2 {[%clk 0:01:00]} 21. Bh3+ {[%clk 0:00:08]}  Kb8 {[%clk 0:00:59]} 22. b5 {[%clk 0:00:08]}  Be7 {[%clk 0:00:58]} 23. Nd5 {[%clk 0:00:04]}  Bd8 {[%clk 0:00:56]} 24. Re1 {[%clk 0:00:02]}  Bh4 {[%clk 0:00:53]} 25. Bd7 {[%clk 0:00:02]}  Bxf2 {[%clk 0:00:51]} 26. Rf1 {[%clk 0:00:02]}  Rxe2 {[%clk 0:00:50]} 27. Nf4 {[%clk 0:00:03]}  Rd2 {[%clk 0:00:47]} 28. Nd3 {[%clk 0:00:03]}  Rd8 {[%clk 0:00:45]} 29. Bf5 {[%clk 0:00:03]}  Bb6 {[%clk 0:00:36]} 30. f4 {[%clk 0:00:03]}  g6 {[%clk 0:00:36]} 31. Bg4 {[%clk 0:00:02]}  R2xd3 {[%clk 0:00:34]} 0-1


[Site "https://www.chess.com"]

[Event "Titled Tuesday Blitz November 15 Early 2022"]
[White "Willathgamuwa, Kevin"]
[Black "Kozak, Antoni"]
[WhiteFideId "3214168"]
[BlackFideId "21832030"]
[WhiteElo "1962"]
[BlackElo "2447"]
[Result "1/2-1/2"]
[Round "04"]
[TimeControl "180+1"]
[Date "2022.11.16"]
[WhiteClock "0:00:30"]
[BlackClock "0:00:06"]

1. e4 {[%clk 0:03:00]}  c6 {[%clk 0:02:56]} 2. Nc3 {[%clk 0:03:00]}  d5 {[%clk 0:02:57]} 3. d4 {[%clk 0:03:01]}  dxe4 {[%clk 0:02:54]} 4. Nxe4 {[%clk 0:03:02]}  Nf6 {[%clk 0:02:53]} 5. Nxf6+ {[%clk 0:02:58]}  exf6 {[%clk 0:02:54]} 6. c3 {[%clk 0:02:54]}  Bd6 {[%clk 0:02:50]} 7. Bd3 {[%clk 0:02:54]}  O-O {[%clk 0:02:50]} 8. Qc2 {[%clk 0:02:54]}  Re8+ {[%clk 0:02:51]} 9. Ne2 {[%clk 0:02:55]}  h5 {[%clk 0:02:44]} 10. Be3 {[%clk 0:02:45]}  Nd7 {[%clk 0:02:31]} 11. O-O-O {[%clk 0:02:40]}  Nf8 {[%clk 0:02:11]} 12. Qd2 {[%clk 0:02:30]}  Be6 {[%clk 0:02:06]} 13. c4 {[%clk 0:02:25]}  b5 {[%clk 0:02:05]} 14. c5 {[%clk 0:02:06]}  Bc7 {[%clk 0:01:55]} 15. Kb1 {[%clk 0:02:05]}  Ng6 {[%clk 0:01:52]} 16. Be4 {[%clk 0:01:58]}  Bxa2+ {[%clk 0:01:44]} 17. Kxa2 {[%clk 0:01:55]}  Rxe4 {[%clk 0:01:44]} 18. Nc3 {[%clk 0:01:55]}  Re7 {[%clk 0:01:43]} 19. h4 {[%clk 0:01:53]}  Ba5 {[%clk 0:01:36]} 20. g4 {[%clk 0:01:51]}  Bxc3 {[%clk 0:01:34]} 21. Qxc3 {[%clk 0:01:50]}  Qd5+ {[%clk 0:01:33]} 22. Ka1 {[%clk 0:01:51]}  hxg4 {[%clk 0:01:26]} 23. h5 {[%clk 0:01:49]}  Nf8 {[%clk 0:01:27]} 24. h6 {[%clk 0:01:49]}  g6 {[%clk 0:01:27]} 25. h7+ {[%clk 0:01:48]}  Kh8 {[%clk 0:01:27]} 26. Bh6 {[%clk 0:01:47]}  Ne6 {[%clk 0:01:18]} 27. Qg3 {[%clk 0:01:45]}  f5 {[%clk 0:01:08]} 28. Qh4 {[%clk 0:01:45]}  g5 {[%clk 0:00:32]} 29. Bxg5 {[%clk 0:01:44]}  Nxg5 {[%clk 0:00:32]} 30. Qxg5 {[%clk 0:01:44]}  Re6 {[%clk 0:00:26]} 31. Rh5 {[%clk 0:01:17]}  Rae8 {[%clk 0:00:18]} 32. Qxf5 {[%clk 0:01:15]}  Qxf5 {[%clk 0:00:13]} 33. Rxf5 {[%clk 0:01:16]}  f6 {[%clk 0:00:13]} 34. Rf4 {[%clk 0:01:14]}  Re1 {[%clk 0:00:10]} 35. Rxe1 {[%clk 0:01:12]}  Rxe1+ {[%clk 0:00:11]} 36. Ka2 {[%clk 0:01:12]}  Kxh7 {[%clk 0:00:08]} 37. Rxf6 {[%clk 0:01:12]}  Rd1 {[%clk 0:00:07]} 38. Rf4 {[%clk 0:01:11]}  Rd2 {[%clk 0:00:06]} 39. Kb3 {[%clk 0:01:04]}  a5 {[%clk 0:00:06]} 40. Kc3 {[%clk 0:01:04]}  Re2 {[%clk 0:00:07]} 41. Rxg4 {[%clk 0:00:59]}  Rxf2 {[%clk 0:00:07]} 42. Re4 {[%clk 0:01:00]}  Rf6 {[%clk 0:00:07]} 43. Re5 {[%clk 0:00:56]}  Kg6 {[%clk 0:00:06]} 44. d5 {[%clk 0:00:56]}  Rf3+ {[%clk 0:00:05]} 45. Kc2 {[%clk 0:00:54]}  cxd5 {[%clk 0:00:05]} 46. Rxd5 {[%clk 0:00:53]}  Rf5 {[%clk 0:00:05]} 47. Rxf5 {[%clk 0:00:27]}  Kxf5 {[%clk 0:00:05]} 48. b4 {[%clk 0:00:28]}  axb4 {[%clk 0:00:04]} 49. Kb3 {[%clk 0:00:27]}  Ke6 {[%clk 0:00:04]} 50. Kxb4 {[%clk 0:00:28]}  Kd7 {[%clk 0:00:04]} 51. Kxb5 {[%clk 0:00:28]}  Kc7 {[%clk 0:00:05]} 52. c6 {[%clk 0:00:28]}  Kc8 {[%clk 0:00:05]} 53. Kc5 {[%clk 0:00:29]}  Kc7 {[%clk 0:00:06]} 54. Kd5 {[%clk 0:00:28]}  Kc8 {[%clk 0:00:06]} 55. Kd6 {[%clk 0:00:28]}  Kd8 {[%clk 0:00:06]} 56. c7+ {[%clk 0:00:29]}  Kc8 {[%clk 0:00:06]} 57. Kc6 {[%clk 0:00:30]} 1/2-1/2


[Site "https://www.chess.com"]